bitfinex-derivatives/quotes_ETHF0:USTF0_20260203
["timestamp","ask_amount","ask_price","bid_price","bid_amount"]
[1770148657393,0.00323025,2211.5,2209.9,2.45159515]
[1770148657900,0.22638,2211.4,2209.9,2.45159515]
[1770148658198,2.64566724,2211.4,2209.9,2.45159515]
[1770148658591,0.22638,2211.4,2209.9,2.45159515]
[1770148658797,0.22629,2212.3,2210.5,2.70771274]
[1770148659097,0.3512184,2213.3,2211.2,3.57830955]
[1770148659098,2.4862898,2213.2,2211.2,3.57830955]
[1770148659294,0.3512184,2213.3,2211.3,2.45159515]
[1770148659494,2.7124798,2213.2,2211.5,2.45159515]
[1770148659799,2.71748933,2213.2,2211.5,2.45630823]
[1770148659997,6.79148933,2213.2,2211.5,2.45630823]
[1770148660301,0.23119953,2213.2,2211.5,2.45630823]
[1770148661302,2.71748933,2213.2,2211.5,2.45630823]
[1770148661902,9.44548933,2213.2,2211.5,2.45630823]
[1770148662102,9.44548933,2213.2,2211.6,2.45159515]
[1770148662303,6.95919953,2213.2,2211.6,2.45159515]
[1770148662494,0.00500953,2213.2,2211.6,2.45159515]
[1770148663496,2.49129933,2213.2,2211.6,2.45159515]
[1770148663699,4.074,2213.1,2211.6,2.45159515]
[1770148664095,6.728,2213.1,2211.6,2.45159515]
[1770148664296,2.7125198,2212.9,2211.6,2.45159515]
[1770148664796,4.074,2212.6,2211.6,2.45159515]
[1770148665202,2.7125198,2212.9,2211.6,2.45159515]
[1770148665203,4.074,2212.5,2211.6,2.45159515]
[1770148665403,4.074,2212.6,2211.6,2.45159515]
[1770148666097,0.22623,2212.9,2211.6,2.45159515]
[1770148666402,4.30023,2212.9,2211.6,2.45159515]
[1770148667404,0.22623,2212.9,2211.6,2.45159515]
[1770148667607,0.00500953,2213.2,2212.1,0.2263]
[1770148667903,0.00500953,2213.2,2211.5,0.00471308]
[1770148667904,0.00500953,2213.2,2212.2,2.45159515]
[1770148668307,4.074,2213.1,2212.2,2.45159515]
[1770148668804,0.00500953,2213.2,2212.2,2.45159515]
[1770148669204,4.07900953,2213.2,2212.2,2.45159515]
[1770148669703,0.00500953,2213.2,2212.2,2.45159515]
[1770148671104,4.07900953,2213.2,2212.2,2.45159515]
[1770148671505,0.00500953,2213.2,2212.2,2.45159515]
[1770148675407,4.074,2213.1,2212.2,2.45159515]
[1770148675707,2.47722542,2213.2,2211.8,2.29923737]
[1770148676002,4.074,2212.9,2211.8,2.29923737]
[1770148676305,4.074,2212.8,2211.8,2.29923737]
[1770148676806,4.074,2212.6,2211.8,2.29923737]
[1770148677006,4.074,2212.9,2211.8,2.29923737]
[1770148677207,0.22627,2212.5,2211.5,2.30395045]
[1770148677406,0.22631,2212.1,2211.5,0.00471308]
[1770148677607,4.074,2211.9,2210.9,2.29923737]
[1770148677807,0.22632,2212.0,2210.9,2.29923737]
[1770148678006,4.074,2211.7,2210.9,2.29923737]
[1770148678408,0.22632,2212.0,2210.9,2.29923737]
[1770148678409,4.074,2211.5,2210.9,2.29923737]
[1770148678610,4.074,2211.7,2210.9,2.29923737]
[1770148678805,4.07830545,2211.7,2210.9,2.29923737]
[1770148679009,4.074,2211.6,2210.9,2.29923737]
[1770148679408,4.074,2211.5,2210.9,2.29923737]
[1770148679711,4.074,2211.6,2210.9,2.29923737]
[1770148680211,4.074,2211.2,2210.6,2.29923737]
[1770148680408,0.22636,2211.6,2210.6,2.29923737]
[1770148680612,4.074,2211.2,2210.3,2.29923737]
[1770148680910,2.69864589,2211.0,2210.0,2.29923737]
[1770148681104,2.47221589,2211.0,2210.0,2.29923737]
[1770148681310,4.074,2210.9,2210.0,2.29923737]
[1770148681510,4.074,2211.1,2210.0,2.29923737]
[1770148681713,4.41823235,2211.1,2210.0,2.29923737]
[1770148681908,4.074,2211.0,2210.0,2.29923737]
[1770148682307,4.074,2210.9,2210.0,2.29923737]
[1770148682611,4.074,2211.0,2210.0,2.29923737]
[1770148682811,4.074,2210.8,2210.0,2.29923737]
[1770148683004,4.074,2210.4,2209.4,2.29923737]
[1770148683204,4.074,2210.4,2209.1,0.22196456]
[1770148683205,6.77069589,2210.4,2209.1,2.52120193]
[1770148683411,4.074,2210.1,2209.1,2.52120193]
[1770148683608,4.07817178,2210.1,2209.1,2.52120193]
[1770148683806,4.074,2209.9,2209.1,2.52120193]
[1770148684013,0.00417178,2210.1,2209.1,2.52120193]
[1770148686112,5.12621589,2210.7,2209.1,2.52120193]
[1770148686409,0.22644,2210.8,2209.1,2.52120193]
[1770148686614,2.47221589,2211.0,2209.3,2.29923737]
[1770148686819,6.727,2211.2,2209.3,2.29923737]
[1770148687013,0.00326461,2211.1,2209.8,2.29923737]
[1770148687310,0.00326461,2211.1,2210.0,2.29923737]
[1770148687515,4.074,2210.9,2210.0,2.29923737]
[1770148687714,2.69865589,2210.9,2209.4,2.29923737]
[1770148688014,6.73026461,2211.1,2209.4,2.29923737]
[1770148688214,4.07726461,2211.1,2209.4,2.29923737]
[1770148688613,0.00326461,2211.1,2209.5,2.29923737]
[1770148688814,0.00326461,2211.1,2209.8,2.52577737]
[1770148689215,15.64155589,2211.8,2210.0,2.29923737]
[1770148689411,15.64155589,2211.8,2210.1,2.29923737]
[1770148689412,0.57980133,2211.8,2210.1,2.29923737]
[1770148689612,12.98648589,2212.5,2210.6,2.29923737]
[1770148689817,5.35348589,2212.5,2210.6,2.29923737]
[1770148690017,2.69851589,2212.2,2210.6,2.29923737]
[1770148690317,0.22633,2211.9,2210.6,2.29923737]
[1770148690520,0.34923719,2212.2,2210.6,2.29923737]
[1770148690712,4.074,2212.1,2210.6,2.29923737]
[1770148691118,4.074,2212.0,2210.6,2.29923737]
[1770148691417,2.47221589,2212.1,2210.6,2.29923737]
[1770148691617,3.00423719,2212.2,2210.6,2.29923737]
[1770148691618,4.074,2211.4,2210.6,2.29923737]
[1770148692220,4.074,2211.2,2210.6,2.29923737]
[1770148692420,4.074,2211.2,2209.9,2.29923737]
[1770148692616,2.47221589,2211.9,2210.1,2.29923737]
[1770148692817,2.47221589,2211.9,2210.3,2.29923737]
[1770148693022,6.89545308,2212.2,2210.5,2.29923737]
[1770148693422,4.074,2212.1,2210.5,2.29923737]
[1770148694816,4.074,2212.0,2210.5,2.29923737]
[1770148695026,4.074,2212.1,2210.5,2.29923737]
[1770148695225,2.47221589,2211.9,2210.5,2.29923737]
[1770148695524,4.074,2211.7,2210.5,2.29923737]
[1770148695719,4.074,2211.2,2210.5,2.29923737]
[1770148695925,4.074,2211.5,2210.5,2.29923737]
[1770148696321,4.074,2211.3,2210.5,2.29923737]
[1770148696519,4.074,2211.5,2210.5,2.29923737]
[1770148697026,4.074,2211.3,2210.5,2.29923737]
[1770148697219,4.074,2211.5,2210.5,2.29923737]
[1770148697426,2.69854589,2211.9,2210.5,2.29923737]
[1770148697622,4.074,2211.5,2210.5,2.29923737]
[1770148698026,2.47221589,2211.4,2210.2,2.29923737]
[1770148698324,6.54621589,2211.3,2210.2,2.29923737]
[1770148698526,4.074,2211.1,2210.2,2.29923737]
[1770148698724,4.074,2211.0,2210.2,2.29923737]
[1770148699125,4.074,2210.8,2210.2,2.29923737]
[1770148699323,4.074,2211.0,2210.2,2.29923737]
[1770148699722,4.074,2210.7,2210.2,2.29923737]
[1770148700016,4.074,2210.9,2210.2,2.29923737]
[1770148700221,4.074,2210.7,2210.2,2.29923737]
[1770148700422,4.074,2210.9,2210.2,2.29923737]
[1770148700819,4.074,2210.7,2210.2,2.29923737]
[1770148701026,4.074,2210.9,2210.2,2.29923737]
[1770148701428,4.074,2210.8,2210.2,2.29923737]
[1770148701627,4.074,2211.1,2210.2,2.29923737]
[1770148702129,4.074,2210.9,2210.2,2.29923737]
[1770148702321,4.074,2211.1,2210.2,2.29923737]
[1770148702923,4.074,2210.9,2209.8,2.48124274]
[1770148703223,4.074,2210.9,2209.7,8.72384637]
[1770148703224,6.73216142,2210.9,2209.9,2.50091476]
[1770148703427,4.074,2210.7,2209.9,2.50091476]
[1770148703621,4.074,2210.6,2209.9,2.50091476]
[1770148703821,4.0776434,2210.6,2209.9,2.50091476]
[1770148704025,4.074,2210.4,2209.9,2.50091476]
[1770148704429,4.074,2210.3,2209.9,2.50091476]
[1770148704629,4.074,2210.4,2209.9,2.50091476]
[1770148705129,4.074,2210.3,2209.9,2.50091476]
[1770148705325,4.074,2210.4,2209.9,2.50091476]
[1770148705729,4.074,2210.3,2209.9,2.50091476]
[1770148705929,4.074,2210.4,2209.9,2.50091476]
[1770148706125,1.50162132,2210.5,2209.9,2.50091476]
[1770148707031,0.0036434,2210.6,2209.9,2.50091476]
[1770148707229,1.50526472,2210.6,2209.9,2.50091476]
[1770148707430,1.50162132,2210.5,2209.8,2.48124274]
[1770148707628,1.50162132,2210.4,2209.7,7.41345032]
[1770148707930,2.43537482,2210.6,2209.8,2.50091476]
[1770148709132,2.43537482,2210.6,2209.6,2.48124274]
[1770148710230,0.0036434,2210.6,2209.6,4.9821575]
[1770148710530,0.0036434,2210.6,2209.9,2.50091476]
[1770148712128,0.0036434,2210.6,2209.8,2.48124274]
[1770148712534,2.43537482,2210.6,2209.5,2.48124274]
[1770148712733,2.43537482,2210.6,2209.4,2.48124274]
[1770148712937,2.43537482,2210.6,2209.5,2.50091476]
[1770148713127,0.22649,2210.4,2209.4,4.91681504]
[1770148713326,2.43173142,2210.3,2209.3,0.004763]
[1770148713734,2.65822142,2210.3,2209.3,0.004763]
[1770148714437,2.43173142,2210.3,2209.3,0.004763]
[1770148715437,0.2301134,2210.6,2209.4,2.50091476]
[1770148715438,2.43173142,2210.5,2209.4,2.50091476]
[1770148715635,0.0036434,2210.6,2209.6,2.50091476]
[1770148715832,0.0036434,2210.6,2209.8,2.48124274]
[1770148716032,0.0036434,2210.6,2209.9,2.50091476]
[1770148716238,0.0036434,2210.6,2209.9,4.9821575]
[1770148716539,2.66183482,2210.6,2209.4,2.48124274]
[1770148716840,2.66183482,2210.6,2209.3,4.9869205]
[1770148717737,2.43173142,2210.3,2209.3,0.004763]
[1770148718742,2.43173142,2210.1,2209.3,0.004763]
[1770148719839,2.65825142,2210.1,2209.3,0.004763]
[1770148720143,2.65825142,2210.1,2209.1,0.22196456]
[1770148720936,2.65825142,2210.1,2209.1,0.22522917]
[1770148721743,2.43173142,2210.1,2209.1,0.22522917]
[1770148722138,2.48173142,2210.1,2209.1,0.22522917]
[1770148722643,2.48173142,2210.1,2209.1,2.72614393]
[1770148723348,2.48173142,2210.1,2209.2,2.50091476]
[1770148724846,2.48173142,2210.1,2209.2,4.9821575]
[1770148725247,2.48173142,2210.1,2209.3,2.48124274]
[1770148725443,0.05,2210.1,2209.4,2.50091476]
[1770148725650,0.0036434,2210.6,2209.4,2.50091476]
[1770148725651,0.0036434,2210.6,2209.6,4.9821575]
[1770148725948,0.0036434,2210.6,2209.7,2.50091476]
[1770148726246,0.0036434,2210.6,2209.9,2.50091476]
[1770148726847,2.43173142,2211.1,2210.0,2.50091476]
[1770148727242,2.43173142,2211.1,2209.9,2.48124274]
[1770148727440,2.43173142,2210.3,2209.1,0.22522917]
[1770148727641,2.43173142,2209.8,2209.1,0.22522917]
[1770148727844,2.43760639,2209.8,2209.1,0.22522917]
[1770148729642,2.43760639,2209.8,2208.5,2.50091476]
[1770148730142,2.43760639,2209.8,2208.3,3.95116942]
[1770148730345,2.65828142,2209.7,2208.1,2.50091476]
[1770148730646,2.40027292,2209.3,2208.1,0.0036434]
[1770148730949,2.40027292,2209.1,2208.1,0.0036434]
[1770148731144,2.40027292,2209.1,2208.1,2.32300302]
[1770148731346,2.40027292,2209.4,2208.1,2.32300302]
[1770148731644,2.40027292,2209.7,2208.3,2.54605962]
[1770148731841,2.40027292,2209.7,2208.6,2.31935962]
[1770148735552,2.40027292,2209.7,2208.3,2.42662132]
[1770148735751,2.40027292,2209.7,2208.1,0.0036434]
[1770148736051,2.5961673,2209.3,2208.1,0.0036434]
[1770148736553,2.3695673,2209.1,2208.1,0.0036434]
[1770148740254,2.5961873,2209.1,2208.1,0.0036434]
[1770148740454,2.3695673,2208.8,2207.4,2.42662132]
[1770148740847,2.3695673,2208.6,2207.1,2.42662132]
[1770148742145,2.3695673,2208.4,2207.1,2.42662132]
[1770148742352,2.5962573,2208.4,2207.1,2.42662132]
[1770148742753,2.3695673,2208.2,2206.7,4.077]
[1770148742948,2.37312781,2208.2,2206.8,2.42662132]
[1770148743152,2.37312781,2208.2,2207.0,2.42662132]
[1770148743350,0.00356051,2208.2,2207.0,2.65345132]
[1770148743550,0.00356051,2208.2,2207.3,2.65342132]
[1770148743747,2.3695673,2208.9,2207.7,0.22676]
[1770148743951,4.077,2209.0,2207.8,2.42662132]
[1770148744153,2.5961373,2209.6,2208.1,2.42662132]
[1770148744754,2.59954126,2209.6,2208.1,2.42662132]
[1770148745561,2.37297126,2209.6,2208.2,2.42662132]
[1770148746050,2.5961573,2209.3,2207.8,2.657]
[1770148746254,2.3695673,2209.1,2207.9,2.42662132]
[1770148746450,0.22664,2208.9,2207.9,2.42662132]
[1770148746656,2.3695673,2208.8,2207.6,2.42662132]
[1770148746856,2.5962473,2208.5,2207.3,2.43018183]
[1770148747158,2.3695673,2208.9,2207.3,2.43018183]
[1770148747353,2.3695673,2208.9,2207.6,2.42662132]
[1770148748558,2.3695673,2208.9,2207.3,2.43018183]
[1770148748759,2.3695673,2208.6,2207.3,2.43018183]
[1770148748960,2.5962373,2208.6,2207.3,2.43018183]
[1770148749553,2.3695673,2208.6,2207.3,2.43018183]
[1770148750466,2.3695673,2208.6,2207.3,0.00356051]
[1770148751060,2.3695673,2208.6,2207.3,2.43018183]
[1770148751563,2.5962373,2208.6,2207.3,2.43018183]
[1770148751758,2.3695673,2208.6,2207.3,2.65698183]
[1770148752660,4.078,2209.1,2207.3,0.00356051]
[1770148752661,2.3695673,2208.4,2207.3,0.00356051]
[1770148752860,2.3695673,2207.8,2206.3,2.42662132]
[1770148753058,2.3695673,2207.8,2206.3,2.65352132]
[1770148753260,2.3695673,2208.3,2206.8,2.42662132]
[1770148753560,0.22664,2208.9,2207.0,2.42662132]
[1770148753760,2.3695673,2208.8,2207.1,2.42662132]
[1770148753955,2.3695673,2208.8,2207.2,2.42662132]
[1770148754162,2.3695673,2208.8,2207.5,2.42662132]
[1770148754563,2.3695673,2208.8,2207.3,2.658]
[1770148754764,2.3695673,2208.8,2207.3,5.08462132]
[1770148755159,2.3695673,2208.6,2207.3,2.42662132]
[1770148755356,2.3695673,2208.4,2207.0,2.42662132]
[1770148756568,2.5962573,2208.4,2207.0,2.42662132]
[1770148757064,2.3695673,2208.3,2206.7,2.42662132]
[1770148757262,2.3695673,2208.3,2206.5,4.078]
[1770148757468,2.3695673,2207.8,2206.1,6.37779074]
[1770148757696,2.3695673,2207.8,2206.2,4.59146538]
[1770148757894,2.3695673,2207.8,2206.1,2.42662132]
[1770148758269,2.5963173,2207.8,2206.1,2.42662132]
[1770148758463,2.3695673,2207.8,2206.0,1.0]
[1770148758769,2.68717753,2207.9,2206.0,1.0]
[1770148758770,2.3695673,2207.2,2206.1,2.42662132]
[1770148758965,2.37318769,2207.2,2206.1,2.42662132]
[1770148759370,2.37318769,2207.2,2206.2,2.42662132]
[1770148759371,0.00362039,2207.2,2206.2,2.42662132]
[1770148759668,2.37318769,2207.2,2206.2,2.42662132]
[1770148760264,0.00362039,2207.2,2206.2,2.42662132]
[1770148761464,2.46098369,2207.8,2206.4,2.68717753]
[1770148761770,2.46098369,2207.8,2206.5,2.34020569]
[1770148762476,2.46098369,2208.4,2206.9,2.34020569]
[1770148762771,4.30664,2208.9,2207.3,2.34020569]
[1770148763072,2.68763369,2208.8,2207.3,2.34020569]
[1770148763472,2.69324526,2208.8,2207.3,2.34020569]
[1770148764473,2.46659526,2208.8,2207.7,2.34020569]
[1770148764674,2.46098369,2209.1,2207.8,2.34020569]
[1770148764968,2.46098369,2209.6,2207.8,2.56694569]
[1770148765165,2.46098369,2209.6,2208.1,2.56692569]
[1770148765368,2.46098369,2209.6,2208.2,2.34020569]
[1770148765769,2.46417584,2209.6,2208.5,2.34020569]
[1770148766267,0.00319215,2209.6,2208.5,2.34020569]
[1770148766470,2.46098369,2210.2,2208.9,2.34020569]
[1770148766666,2.46098369,2210.2,2208.8,2.68717753]
[1770148766667,4.079,2210.6,2209.0,2.34020569]
[1770148766869,2.46098369,2210.5,2209.0,2.34020569]
[1770148767569,2.464518,2210.5,2209.0,2.34020569]
[1770148767872,2.46098369,2209.9,2208.3,3.95116942]
[1770148768070,2.46098369,2209.9,2208.3,2.34020569]
[1770148768468,0.22654,2209.8,2208.3,2.34020569]
[1770148768672,2.46098369,2209.7,2208.2,0.00470005]
[1770148768977,2.46098369,2209.7,2208.2,2.34490574]
[1770148770375,2.46098369,2209.7,2208.2,2.57160574]
[1770148771476,2.46098369,2209.7,2208.2,2.34490574]
[1770148773577,4.078,2210.1,2208.2,0.00470005]
[1770148773578,2.46098369,2209.5,2208.2,0.00470005]
[1770148773778,2.68755369,2209.5,2208.2,0.00470005]
[1770148774174,2.46098369,2209.3,2208.2,0.00470005]
[1770148774379,2.46098369,2209.1,2208.2,0.00470005]
[1770148774578,2.46098369,2208.7,2207.4,2.34020569]
[1770148775074,2.46098369,2208.5,2207.0,2.34020569]
[1770148775575,2.46561767,2208.5,2207.0,2.34371176]
[1770148776276,2.46561767,2208.5,2207.1,2.34020569]
[1770148777374,2.46561767,2208.5,2207.0,0.00350607]
[1770148777680,2.68772369,2207.9,2207.0,0.00350607]
[1770148778271,2.46098369,2207.9,2207.0,0.00350607]
[1770148778874,2.46098369,2208.3,2207.0,2.34371176]
[1770148780380,2.68768369,2208.3,2207.0,2.34371176]
[1770148780983,0.22671,2208.2,2207.0,0.00350607]
[1770148781185,2.46098369,2207.8,2207.0,0.00350607]
[1770148781482,2.46098369,2207.6,2207.0,0.00350607]
[1770148781679,2.68775369,2207.6,2206.4,4.078]
[1770148781882,2.46098369,2207.6,2206.4,4.078]
[1770148782684,2.46098369,2207.6,2206.4,4.08335256]
[1770148783286,2.46098369,2207.6,2206.5,2.34020569]
[1770148783483,2.46098369,2208.3,2206.5,2.56708569]
[1770148783985,2.46098369,2208.3,2207.0,2.34020569]
[1770148784183,2.46098369,2208.3,2207.0,2.56702569]
[1770148784686,2.46098369,2208.3,2206.7,2.34020569]
[1770148784885,2.46098369,2208.3,2206.7,2.56706569]
[1770148786083,2.46098369,2208.1,2206.7,2.34020569]
[1770148786289,2.68770369,2208.1,2206.7,2.34020569]
[1770148788190,2.68770369,2208.1,2206.4,6.65044825]
[1770148788489,2.46098369,2207.7,2206.4,6.42355825]
[1770148790494,2.46098369,2207.7,2206.5,2.34020569]
[1770148791990,2.46098369,2207.7,2206.4,4.08335256]
[1770148792390,2.48910746,2207.1,2206.4,0.00535256]
[1770148792592,2.48910746,2207.1,2206.0,0.52452112]
[1770148793084,4.08,2207.6,2206.0,0.52452112]
[1770148793085,0.22685,2206.9,2206.0,0.52452112]
[1770148793290,2.48910746,2206.8,2206.0,0.52452112]
[1770148793690,2.49273808,2206.8,2206.0,0.53003194]
[1770148795592,2.49273808,2206.8,2205.3,2.41951961]
[1770148796688,2.49273808,2206.8,2205.3,2.42383299]
[1770148798494,2.52492289,2206.6,2205.3,2.42383299]
[1770148799091,2.52492289,2206.4,2205.3,0.00431338]
[1770148799292,2.52492289,2206.2,2205.3,0.00431338]
[1770148800091,2.75184289,2206.2,2205.3,0.00431338]
[1770148800396,2.52492289,2205.5,2204.2,2.41951961]
[1770148801389,0.22698,2205.6,2204.4,2.41951961]
[1770148801693,2.52492289,2205.8,2204.4,2.41951961]
[1770148802194,2.92666151,2205.9,2204.4,2.41951961]
[1770148802392,2.92666151,2205.9,2204.8,2.41951961]
[1770148802595,2.52492289,2206.2,2205.2,2.41951961]
[1770148802989,2.52492289,2205.9,2204.5,5.04463547]
[1770148803193,2.52492289,2205.9,2204.3,2.41951961]
[1770148803392,4.082,2206.5,2204.9,0.22704]
[1770148803697,4.48119517,2206.5,2205.2,2.41951961]
[1770148803996,4.48119517,2206.5,2204.8,4.082]
[1770148804191,4.48119517,2206.5,2204.8,6.50151961]
[1770148804398,4.48119517,2206.5,2204.9,2.41951961]
[1770148805001,0.23048062,2206.8,2205.2,2.41951961]
[1770148805293,2.52492289,2206.7,2205.0,2.62511586]
[1770148805500,2.52492289,2207.0,2205.9,2.64645961]
[1770148805697,2.52492289,2207.0,2205.9,2.41951961]
[1770148806293,2.52492289,2207.8,2206.2,2.64642961]
[1770148806495,2.52950903,2207.8,2206.2,2.65006023]
[1770148806801,2.52492289,2207.5,2206.2,0.00363062]
[1770148807191,2.52492289,2207.5,2206.2,2.42315023]
[1770148807701,2.75170289,2207.5,2206.2,0.00363062]
[1770148807995,2.52492289,2207.0,2206.2,0.00363062]
[1770148808596,2.52492289,2206.7,2205.3,2.41951961]
[1770148809998,2.52492289,2207.0,2205.5,2.41951961]
[1770148810198,2.52492289,2207.0,2205.6,2.64648961]
[1770148810393,2.52492289,2207.0,2205.8,2.41951961]
[1770148811196,2.52492289,2207.3,2205.8,5.07951961]
[1770148811404,0.00458614,2207.8,2205.8,5.07951961]
[1770148811405,0.00458614,2207.8,2206.6,5.04463547]
[1770148811715,2.52492289,2207.0,2205.8,3.95116942]
[1770148811892,2.52492289,2207.0,2205.6,5.04463547]
[1770148811893,2.52492289,2206.5,2205.3,6.37068903]
[1770148812097,0.2269,2206.3,2205.0,2.41951961]
[1770148812399,2.52492289,2206.6,2205.1,2.64653961]
[1770148812600,2.52492289,2206.6,2205.3,2.41951961]
[1770148813001,2.52492289,2206.6,2205.2,2.41951961]
[1770148813202,2.52492289,2206.4,2205.0,2.41951961]
[1770148814301,2.52492289,2206.4,2205.2,2.41951961]
[1770148814497,2.52492289,2206.4,2205.3,2.41951961]
[1770148814698,2.52492289,2206.8,2205.5,2.41951961]
[1770148814893,2.52492289,2206.8,2205.3,2.62734644]
[1770148815098,2.52492289,2206.8,2205.2,2.41951961]
[1770148815600,2.75182289,2206.4,2204.8,2.41951961]
[1770148816004,2.75182289,2206.4,2204.9,2.41951961]
[1770148816601,2.75184289,2206.2,2204.6,5.04686605]
[1770148816800,2.52869225,2206.2,2204.7,2.41951961]
[1770148817001,2.52869225,2206.2,2204.9,2.41951961]
[1770148817201,2.52869225,2206.2,2205.1,2.41951961]
[1770148817601,0.00376936,2206.2,2205.2,2.64652961]
[1770148817802,2.52492289,2206.6,2205.3,2.41951961]
[1770148818496,2.52492289,2205.9,2204.9,2.62734644]
[1770148818699,2.52492289,2205.9,2204.6,2.41951961]
[1770148818896,2.52492289,2205.9,2204.5,2.62734644]
[1770148818897,2.52962951,2205.9,2204.9,2.42328897]
[1770148819103,0.00470662,2205.9,2204.9,2.42328897]
[1770148819300,2.52492289,2206.5,2205.2,2.41951961]
[1770148819499,2.52492289,2206.5,2205.4,2.41951961]
[1770148819702,2.52492289,2206.5,2205.5,2.41951961]
[1770148820108,2.52492289,2207.7,2205.5,2.41951961]
[1770148820401,2.52492289,2207.2,2205.7,2.41951961]
[1770148820803,0.22682,2207.1,2205.7,2.41951961]
[1770148821105,2.42101124,2207.0,2205.7,2.41951961]
[1770148821309,2.42101124,2207.0,2205.7,5.04686605]
[1770148821706,2.42101124,2207.6,2206.0,2.54606797]
[1770148822212,2.64778124,2207.6,2206.0,2.54606797]
[1770148822509,2.42101124,2207.6,2206.7,2.54606797]
[1770148822705,2.42101124,2207.6,2206.7,2.55048544]
[1770148823110,2.42101124,2207.6,2206.7,0.00441747]
[1770148823902,2.42101124,2207.4,2206.1,2.62734644]
[1770148824107,2.42101124,2207.0,2205.9,2.54606797]
[1770148824714,2.42101124,2207.6,2206.4,2.54606797]
[1770148824913,2.42101124,2207.6,2206.4,5.17341441]
[1770148825114,2.42101124,2207.6,2206.4,2.55012648]
[1770148825711,2.42101124,2207.6,2206.5,2.54606797]
[1770148826019,0.00472326,2207.7,2206.8,2.54606797]
[1770148826615,2.42101124,2208.2,2206.9,5.17341441]
[1770148826915,2.42101124,2208.2,2206.7,3.93984313]
[1770148826916,2.42101124,2208.0,2206.4,2.63140495]
[1770148827112,0.3911364,2208.5,2206.4,0.00405851]
[1770148827113,2.42101124,2207.5,2206.4,0.00405851]
[1770148827420,2.42101124,2208.1,2206.5,2.54606797]
[1770148827620,2.42486242,2208.1,2206.5,2.54606797]
[1770148827819,2.42486242,2208.1,2206.6,2.77293797]
[1770148828921,2.42486242,2208.1,2206.7,2.54606797]
[1770148829920,2.42101124,2207.8,2206.4,2.63140495]
[1770148830118,2.42101124,2207.8,2206.4,0.00405851]
[1770148830418,2.42101124,2207.1,2206.4,0.00405851]
[1770148830623,6.75907383,2208.1,2206.4,0.00405851]
[1770148830624,2.42101124,2207.6,2206.4,0.00405851]
[1770148831022,2.42101124,2207.6,2206.4,2.77700648]
[1770148831425,2.42101124,2207.6,2206.5,2.54606797]
[1770148831627,2.42101124,2207.6,2206.4,0.00405851]
[1770148832123,2.42101124,2207.5,2206.4,0.00405851]
[1770148832523,2.64779124,2207.5,2206.4,0.00405851]
[1770148833218,2.42101124,2207.5,2206.4,2.55012648]
[1770148833624,2.42101124,2207.5,2206.5,2.54606797]
[1770148833824,2.42101124,2207.9,2206.6,2.54606797]
[1770148834418,2.42101124,2207.9,2206.7,2.54606797]
[1770148835120,2.42101124,2207.9,2206.5,2.62734644]
[1770148835324,2.42101124,2207.9,2206.4,3.94390164]
[1770148835325,2.42101124,2207.7,2206.4,9.72205345]
[1770148835719,2.42101124,2207.5,2206.5,2.54606797]
[1770148835918,0.22679,2207.4,2206.4,0.00405851]
[1770148836125,2.42101124,2207.3,2206.4,0.00405851]
[1770148837127,2.42101124,2207.3,2206.2,2.54606797]
[1770148837128,2.42101124,2206.8,2205.8,2.62734644]
[1770148837426,2.42101124,2207.3,2205.9,2.54606797]
[1770148837626,2.42101124,2207.3,2206.1,2.54606797]
[1770148837822,2.42101124,2207.3,2205.9,2.62734644]
[1770148838022,2.42101124,2207.3,2205.9,5.17341441]
[1770148838325,2.42101124,2207.3,2206.0,2.54606797]
[1770148838521,2.42101124,2207.3,2206.0,2.77299797]
[1770148838828,2.42101124,2207.3,2206.1,2.54606797]
[1770148839018,2.42101124,2207.3,2206.2,2.54606797]
[1770148839525,2.42101124,2207.3,2206.0,7.40165823]
[1770148839725,2.42101124,2207.3,2206.0,2.77299797]
[1770148839922,2.42101124,2207.3,2206.1,2.54606797]
[1770148840124,2.42101124,2207.3,2205.6,6.20310687]
[1770148840125,2.42101124,2206.7,2205.6,3.53470297]
[1770148840325,2.42101124,2206.7,2205.6,2.54606797]
[1770148840725,2.42101124,2207.0,2205.8,2.54606797]
[1770148841328,2.42101124,2207.0,2205.5,5.20506797]
[1770148841929,2.64786124,2206.8,2205.5,2.54606797]
[1770148842424,2.42101124,2206.6,2205.2,5.20506797]
[1770148842630,2.42101124,2206.6,2205.3,2.54606797]
[1770148843126,2.64788124,2206.6,2205.0,2.54606797]
[1770148844530,2.42101124,2206.6,2205.2,2.54606797]
[1770148844728,2.42101124,2206.6,2205.4,2.54606797]
[1770148845626,2.42101124,2206.6,2205.4,2.77305797]
[1770148846930,2.42101124,2206.6,2205.4,2.54606797]
[1770148847434,2.42101124,2206.6,2205.5,2.77304797]
[1770148847632,2.42101124,2207.1,2205.9,2.54606797]
[1770148848329,2.42101124,2207.1,2206.1,2.54606797]
[1770148848634,2.42101124,2207.1,2206.3,0.2269]
[1770148848831,0.22676,2207.7,2206.3,0.2269]
[1770148848832,2.42101124,2207.6,2206.3,2.77296797]
[1770148850730,2.64778124,2207.6,2206.0,2.4019556]
[1770148850931,2.42101124,2207.6,2206.2,2.6288656]
[1770148851135,2.42101124,2207.6,2206.4,2.6288456]
[1770148851335,2.44302446,2208.0,2206.7,2.4019556]
[1770148851830,2.44302446,2208.7,2207.1,2.4019556]
[1770148852030,2.44302446,2208.5,2207.1,2.4019556]
[1770148852235,2.44302446,2208.5,2206.8,2.4019556]
[1770148852236,2.66970446,2208.5,2206.8,2.4019556]
[1770148852436,2.66972446,2208.3,2206.8,2.4019556]
[1770148852733,2.44302446,2208.2,2206.5,2.4019556]
[1770148853438,2.44762783,2208.2,2206.7,2.4019556]
[1770148854237,2.44762783,2208.2,2206.5,0.00328774]
[1770148854839,2.325609,2207.9,2206.7,2.4753943]
[1770148855136,2.33021237,2208.2,2207.0,2.4753943]
[1770148856642,2.33021237,2208.2,2207.0,2.7022143]
[1770148857244,2.33021237,2208.2,2206.7,2.4753943]
[1770148857540,2.33021237,2208.2,2206.8,2.4753943]
[1770148858337,2.33021237,2208.2,2206.5,2.47868204]
[1770148858338,2.325609,2207.7,2206.5,2.47868204]
[1770148858542,2.325609,2207.5,2206.5,0.00328774]
[1770148860445,2.325609,2207.0,2205.3,2.4753943]
[1770148860641,2.325609,2206.6,2205.3,2.4753943]
[1770148860838,2.325609,2207.2,2205.6,2.7023643]
[1770148861043,2.325609,2207.2,2205.8,2.4753943]
[1770148861242,2.32910837,2207.2,2206.0,2.7023243]
[1770148862244,0.00349937,2207.2,2206.2,2.4753943]
[1770148862643,2.325609,2207.6,2206.5,2.4753943]
[1770148862844,2.325609,2208.0,2206.9,2.4753943]
[1770148863149,4.081,2208.6,2207.3,2.4753943]
[1770148863645,2.325609,2209.0,2207.7,2.4753943]
[1770148863849,0.00330164,2208.6,2207.7,0.00435572]